fUSD/lending_fUSD_20251223
["ID","MTS","AMOUNT","RATE_DAILY","PERIOD"]
[399549495,1766476242031,-15863.82543477,0.00016088,2]
[399549496,1766476242041,-1123.92525709,0.0001609,2]
[399549497,1766476242050,-150.0,0.00016094,2]
[399549498,1766476242059,-150.0,0.00016102,2]
[399549499,1766476242068,-150.0,0.00016114,2]
[399549500,1766476242077,-150.0,0.00016123,2]
[399549501,1766476242086,-150.0,0.00016137,2]
[399549502,1766476242095,-150.0,0.00016137,2]
[399549503,1766476242104,-150.0,0.00016137,2]
[399549504,1766476242114,-150.0,0.00016137,2]
[399549505,1766476242123,-150.0,0.00016137,2]
[399549506,1766476242132,-150.0,0.00016137,2]
[399549507,1766476242141,-150.0,0.00016137,2]
[399549508,1766476242150,-150.0,0.00016151,2]
[399549509,1766476242158,-150.0,0.0001616,2]
[399549510,1766476242168,-150.0,0.00016172,2]
[399549511,1766476242177,-150.0,0.0001618,2]
[399549512,1766476242186,-150.0,0.0001619,2]
[399549513,1766476242195,-150.0,0.00016194,2]
[399549514,1766476242204,-150.0,0.00016198,2]
[399549515,1766476242214,-225.07775319,0.00016204,2]
[399549516,1766476242222,-150.0,0.00016206,2]
[399549517,1766476242231,-237.9,0.00016206,2]
[399549518,1766476242241,-150.0,0.00016208,2]
[399549519,1766476242251,-150.0,0.00016209,2]
[399549520,1766476242260,-150.0,0.00016231,2]
[399549521,1766476242269,-150.0,0.00016238,2]
[399549522,1766476242278,-150.0,0.00016243,2]
[399549523,1766476242287,-150.0,0.00016243,2]
[399549524,1766476242296,-150.0,0.0001625,2]
[399549525,1766476242305,-150.0,0.00016252,2]
[399549526,1766476242314,-150.0,0.00016258,2]
[399549527,1766476242323,-150.0,0.00016258,2]
[399549528,1766476242333,-150.0,0.00016267,2]
[399549529,1766476242342,-150.0,0.00016279,2]
[399549530,1766476242351,-150.0,0.00016295,2]
[399549531,1766476242361,-150.0,0.00016296,2]
[399549532,1766476242370,-150.0,0.00016298,2]
[399549533,1766476242379,-150.0,0.00016307,2]
[399549534,1766476242388,-150.0,0.00016307,2]
[399549535,1766476242398,-150.0,0.00016314,2]
[399549536,1766476242407,-150.0,0.00016319,2]
[399549537,1766476242417,-150.0,0.00016324,2]
[399549538,1766476242426,-150.0,0.00016344,2]
[399549539,1766476242435,-150.0,0.00016349,2]
[399549540,1766476242444,-150.0,0.00016349,2]
[399549541,1766476242453,-150.0,0.00016349,2]
[399549542,1766476242463,-150.0,0.00016353,2]
[399549543,1766476242473,-15863.82543477,0.00016359,2]
[399549544,1766476242482,-150.0,0.00016363,2]
[399549545,1766476242495,-150.0,0.0001638,2]
[399549546,1766476242505,-150.0,0.00016382,2]
[399549547,1766476242515,-150.0,0.00016385,2]
[399549548,1766476242525,-150.0,0.00016389,2]
[399549549,1766476242534,-150.0,0.00016402,2]
[399549550,1766476242553,-1382.47,0.00016405,2]
[399549551,1766476242564,-150.0,0.0001641,2]
[399549552,1766476242574,-150.0,0.0001642,2]
[399549553,1766476242583,-150.0,0.0001642,2]
[399549554,1766476242593,-150.0,0.0001642,2]
[399549555,1766476242602,-150.0,0.00016435,2]
[399549556,1766476242612,-500.0,0.00016438,2]
[399549557,1766476242621,-500.0,0.00016438,2]
[399549558,1766476242631,-500.0,0.00016438,2]
[399549559,1766476242641,-500.0,0.00016438,2]
[399549560,1766476242650,-500.0,0.00016438,2]
[399549561,1766476242659,-500.0,0.00016438,2]
[399549562,1766476242669,-500.0,0.00016438,2]
[399549563,1766476242679,-500.0,0.00016438,2]
[399549564,1766476242688,-500.0,0.00016438,2]
[399549565,1766476242697,-500.0,0.00016438,2]
[399549566,1766476242707,-230.86853407,0.00016438,2]
[399549567,1766476242717,-8845.05,0.00016438,2]
[399549568,1766476242727,-150.0,0.00016439,2]
[399549569,1766476242737,-150.0,0.0001644,2]
[399549570,1766476242747,-150.0,0.00016455,2]
[399549571,1766476242757,-150.0,0.00016455,2]
[399549572,1766476242767,-150.0,0.00016468,2]
[399549573,1766476242776,-150.0,0.00016477,2]
[399549574,1766476242786,-150.0,0.00016481,2]
[399549575,1766476242796,-150.0,0.00016491,2]
[399549576,1766476242805,-150.0,0.00016497,2]
[399549577,1766476242815,-150.0,0.00016501,2]
[399549578,1766476242824,-150.0,0.00016501,2]
[399549579,1766476242834,-150.0,0.00016509,2]
[399549580,1766476242844,-150.0,0.00016526,2]
[399549581,1766476242853,-150.0,0.00016526,2]
[399549582,1766476242863,-150.0,0.00016527,2]
[399549583,1766476242872,-150.0,0.00016533,2]
[399549584,1766476242882,-225.07775319,0.00016552,2]
[399549585,1766476242891,-150.0,0.00016554,2]
[399549586,1766476242901,-150.0,0.00016562,2]
[399549587,1766476242910,-150.0,0.00016562,2]
[399549588,1766476242920,-150.0,0.00016562,2]
[399549589,1766476242929,-150.0,0.00016562,2]
[399549590,1766476242938,-150.0,0.00016573,2]
[399549591,1766476242948,-150.0,0.00016583,2]
[399549592,1766476242957,-150.0,0.0001659,2]
[399549593,1766476242966,-150.0,0.00016597,2]
[399549594,1766476242975,-150.0,0.00016609,2]
[399549595,1766476242985,-150.0,0.00016612,2]
[399549596,1766476242994,-150.0,0.00016615,2]
[399549597,1766476243004,-150.0,0.00016619,2]
[399549598,1766476243014,-150.0,0.00016622,2]
[399549599,1766476243023,-15863.82543477,0.00016629,2]
[399549600,1766476243033,-150.0,0.00016632,2]
[399549601,1766476243043,-150.0,0.00016641,2]
[399549602,1766476243052,-150.0,0.00016647,2]
[399549603,1766476243062,-150.0,0.00016647,2]
[399549604,1766476243071,-150.0,0.00016665,2]
[399549605,1766476243081,-150.0,0.00016668,2]
[399549606,1766476243091,-150.0,0.00016668,2]
[399549607,1766476243100,-150.0,0.0001667,2]
[399549608,1766476243110,-150.0,0.00016683,2]
[399549609,1766476243119,-1000.0,0.00016688,2]
[399549610,1766476243128,-150.0,0.00016698,2]
[399549611,1766476243138,-150.0,0.00016703,2]
[399549612,1766476243147,-150.0,0.00016703,2]
[399549613,1766476243157,-150.0,0.00016711,2]
[399549614,1766476243166,-150.0,0.00016721,2]
[399549615,1766476243176,-150.0,0.00016727,2]
[399549616,1766476243186,-150.0,0.00016739,2]
[399549617,1766476243195,-150.0,0.00016744,2]
[399549618,1766476243204,-150.0,0.00016744,2]
[399549619,1766476243213,-150.0,0.00016756,2]
[399549620,1766476243223,-150.0,0.00016757,2]
[399549621,1766476243232,-150.0,0.0001676,2]
[399549622,1766476243241,-150.0,0.00016774,2]
[399549623,1766476243251,-150.0,0.00016774,2]
[399549624,1766476243260,-150.0,0.00016774,2]
[399549625,1766476243269,-150.0,0.00016785,2]
[399549626,1766476243280,-150.0,0.00016798,2]
[399549627,1766476243289,-150.0,0.00016803,2]
[399549628,1766476243298,-150.0,0.00016804,2]
[399549629,1766476243308,-150.0,0.00016809,2]
[399549630,1766476243317,-150.0,0.00016814,2]
[399549631,1766476243327,-150.0,0.00016816,2]
[399549632,1766476243336,-150.0,0.00016827,2]
[399549633,1766476243345,-150.0,0.00016842,2]
[399549634,1766476243354,-433.0,0.00016843,2]
[399549635,1766476243364,-150.0,0.00016845,2]
[399549636,1766476243374,-150.0,0.00016849,2]
[399549637,1766476243383,-150.0,0.00016865,2]
[399549638,1766476243392,-150.0,0.00016871,2]
[399549639,1766476243401,-150.0,0.00016873,2]
[399549640,1766476243411,-150.0,0.0001688,2]
[399549641,1766476243420,-150.0,0.0001688,2]
[399549642,1766476243430,-150.0,0.00016894,2]
[399549643,1766476243439,-150.0,0.000169,2]
[399549644,1766476243448,-10000.0,0.000169,2]
[399549645,1766476243457,-1074.05471554,0.000169,2]
[399549646,1766476243466,-397.76244075,0.000169,2]
[399549647,1766476243475,-225.07775319,0.000169,2]
[399549648,1766476243487,-15863.82543477,0.000169,2]
[399549649,1766476243496,-4406.27490928,0.000169,2]
[399549650,1766476243506,-204.73820807,0.000169,2]
[399549651,1766476243516,-342.2070404,0.000169,2]
[399549652,1766476243526,-473.13264223,0.000169,2]
[399549653,1766476243536,-1569.95644477,0.000169,2]
[399549654,1766476243545,-150.0,0.00016916,2]
[399549655,1766476243556,-150.0,0.00016926,2]
[399549656,1766476243565,-150.0,0.00016929,2]
[399549657,1766476243574,-150.0,0.0001693,2]
[399549658,1766476243584,-150.0,0.00016933,2]
[399549659,1766476243593,-150.0,0.0001694,2]
[399549660,1766476243603,-150.0,0.00016951,2]
[399549661,1766476243612,-150.0,0.00016958,2]
[399549662,1766476243621,-308.61264672,0.00016973,2]
[399549663,1766476243631,-500.0,0.00016973,2]
[399549664,1766476243640,-500.0,0.00016973,2]
[399549665,1766476243650,-500.0,0.00016973,2]
[399549666,1766476243660,-500.0,0.00016973,2]
[399549667,1766476243669,-500.0,0.00016973,2]
[399549668,1766476243678,-500.0,0.00016973,2]
[399549669,1766476243688,-500.0,0.00016973,2]
[399549670,1766476243697,-500.0,0.00016973,2]
[399549671,1766476243706,-500.0,0.00016973,2]
[399549672,1766476243716,-500.0,0.00016973,2]
[399549673,1766476243725,-500.0,0.00016973,2]
[399549674,1766476243734,-500.0,0.00016973,2]
[399549675,1766476243743,-500.0,0.00016973,2]
[399549676,1766476243753,-500.0,0.00016973,2]
[399549677,1766476243763,-500.0,0.00016973,2]
[399549678,1766476243773,-500.0,0.00016973,2]
[399549679,1766476243783,-500.0,0.00016973,2]
[399549680,1766476243792,-500.66742167,0.00016973,2]
[399549681,1766476243802,-500.0,0.00016973,2]
[399549682,1766476243812,-500.0,0.00016973,2]
[399549683,1766476243821,-150.0,0.00016973,2]
[399549684,1766476243830,-4091.0618187,0.00016986,2]
[399549685,1766476243839,-917.0,0.00016986,2]
[399549686,1766476243848,-160.0,0.00016986,2]
[399549687,1766476243858,-155.67810627,0.00016986,2]
[399549688,1766476243867,-187.23652248,0.00016986,2]
[399549689,1766476243877,-158.82091813,0.00016986,2]
[399549690,1766476243888,-170.05295306,0.00016986,2]
[399549691,1766476243897,-157.05336635,0.00016986,2]
[399549692,1766476243910,-153.54932448,0.00016986,2]
[399549693,1766476243920,-156.46907261,0.00016986,2]
[399549694,1766476243930,-152.52066163,0.00016986,2]
[399549695,1766476243940,-157.90105787,0.00016986,2]
[399549696,1766476243950,-151.81921772,0.00016986,2]
[399549697,1766476243959,-158.56178707,0.00016986,2]
[399549698,1766476243968,-151.30060164,0.00016986,2]
[399549699,1766476243977,-159.06410313,0.00016986,2]
[399549700,1766476243986,-1047.49903492,0.0001699,2]
[399549701,1766476243995,-1047.49903492,0.0001699,2]
[399549702,1766476244005,-300.0,0.00016999,2]
[399549703,1766476244015,-4064831.05910329,0.00017,2]
[399549704,1766476244491,-273144.53107181,0.00017,2]
[399549705,1766476244503,-166020.98301214,0.00017,2]
[399549706,1766476244515,-2776754.10397265,0.00017,2]
[399549707,1766476244541,-420.28217881,0.00016088,2]
[399549712,1766476245581,-1599.48555559,0.00016088,2]
[399549713,1766476245590,-2019.7677344,0.00016359,2]
[399549714,1766476245600,-11274.4158431,0.00017,2]
[399549715,1766476245717,-876.62,0.00017,2]
[399549716,1766476245729,-2044.3916497,0.00017,2]
[399549743,1766476838823,-162.702,0.00014133,2]
[399549744,1766476838850,-168.886,0.00014133,2]
[399549748,1766477431538,-1500.509,0.00014133,2]
[399549749,1766477431547,-162.702,0.00014133,2]
[399549750,1766477431558,-1200.0,0.00014171,2]
[399549751,1766477431567,-300.0,0.00014172,2]
[399549752,1766477431577,-300.0,0.00014172,2]
[399549753,1766477431587,-501.7326664,0.00014173,2]
[399549754,1766477431596,-500.0,0.00014173,2]
[399549755,1766477431606,-500.0,0.00014173,2]
[399549756,1766477431615,-500.0,0.00014173,2]
[399549757,1766477431624,-500.0,0.00014173,2]
[399549758,1766477431634,-500.0,0.00014173,2]
[399549759,1766477431643,-500.0,0.00014173,2]
[399549760,1766477431652,-500.0,0.00014173,2]
[399549761,1766477431662,-2442.45715047,0.00014312,2]
[399549762,1766477431671,-150.0,0.0001432,2]
[399549763,1766477431681,-500.0,0.0001432,2]
[399549764,1766477431690,-500.0,0.0001432,2]
[399549765,1766477431700,-358.54818512,0.0001432,2]
[399549766,1766477431709,-826.36510452,0.00014321,2]
[399549767,1766477431718,-1135.4707141,0.00014321,2]
[399549768,1766477431727,-110573.06974813,0.00014321,2]
[399549769,1766477431739,-666.0,0.00014321,2]
[399549770,1766477431751,-4562.01934014,0.00014321,2]
[399549771,1766477431761,-404.0,0.00014321,2]
[399549772,1766477431772,-793.64047554,0.00014321,2]
[399549792,1766477437577,-628.73244732,0.00014321,2]
[399549794,1766477437622,-2409.62510599,0.00014321,2]
[399549796,1766477437634,-392.85782781,0.00014321,2]
[399549797,1766477437646,-4413.5474306,0.00014321,2]
[399549798,1766477439796,-1861.54,0.00014321,2]
[399549799,1766477439808,-4133.8326617,0.00014321,2]
[399549800,1766477439820,-438.65514724,0.00014321,2]
[399549801,1766477439833,-1001.80382516,0.00014321,2]
[399549802,1766477439913,-264.87614929,0.00014321,2]
[399549803,1766477439926,-2584.14950502,0.00014321,2]
[399549873,1766477442707,-345.0,0.00014321,2]
[399549874,1766477442718,-745.57601465,0.00014321,2]
[399549875,1766477442729,-1040.80419158,0.00014321,2]
[399549876,1766477442930,-234778.6819904,0.00014321,2]
[399549877,1766477442942,-725.59986732,0.00014321,2]
[399549878,1766477442954,-773.11986588,0.00014321,2]
[399549879,1766477442981,-612.67667855,0.00014321,2]
[399549886,1766477445694,-612.15237484,0.00014321,2]
[399549887,1766477445706,-260.63,0.00014321,2]
[399549888,1766477445718,-6402.076457,0.00014321,2]
[399549889,1766477445730,-46306.69109011,0.00014321,2]
[399549890,1766477445741,-11135.68440695,0.00014321,2]
[399549891,1766477445960,-4943.07945674,0.00014321,2]
[399549892,1766477445971,-3235.75122658,0.00014321,2]
[399549893,1766477445982,-19183.69944258,0.00014321,2]
[399549894,1766477446015,-1600.0,0.00014321,2]
[399549995,1766478631695,-699.63,0.00013699,2]
[399549997,1766478631706,-934.55,0.00013894,2]
[399549999,1766478631717,-37.33544629,0.00013957,2]
[399550001,1766478631731,-226.07455371,0.00013957,2]
[399550002,1766478631742,-150.0,0.00014039,2]
[399550003,1766478631754,-209.58315062,0.00014066,2]
[399550004,1766478631767,-1303.79143741,0.00014113,2]
[399550005,1766478631780,-4191.96366259,0.00014113,2]
[399550006,1766478631792,-1200.0,0.0001412,2]
[399550007,1766478631803,-973.26061206,0.00014121,2]
[399550008,1766478631814,-2198.21143545,0.00014121,2]
[399550009,1766478631825,-743.72859405,0.00014121,2]
[399550010,1766478631837,-500.0,0.00014173,2]
[399550011,1766478631850,-166.66,0.00014209,2]
[399550012,1766478631862,-300.0,0.00014211,2]
[399550013,1766478631874,-300.0,0.00014211,2]
[399550014,1766478631885,-150.0,0.00014212,2]
[399550015,1766478631897,-9117.16162314,0.00014213,2]
[399550016,1766478631910,-797.59445327,0.00014213,2]
[399550017,1766478631923,-1108.44106798,0.00014213,2]
[399550018,1766478631935,-1756.01934125,0.00014213,2]
[399550019,1766478631980,-17039.50897678,0.00014213,2]
[399550020,1766478631994,-4835.2996689,0.00014213,2]
[399550021,1766478632011,-272.47,0.00014213,2]
[399550022,1766478632024,-1703.53710003,0.00014213,2]
[399550075,1766478637816,-4038.43321862,0.00014213,2]
[399550076,1766478637829,-3839.69519995,0.00014213,2]
[399550077,1766478637841,-52806.74274463,0.00014213,2]
[399550078,1766478637854,-787.36629238,0.00014213,2]
[399550079,1766478637866,-8568.3,0.00014213,2]
[399550123,1766478639960,-811.12159998,0.00014213,2]
[399550124,1766478639973,-892518.30871309,0.00014213,2]
[399550125,1766478639984,-1000.0,0.00014221,2]
[399550126,1766478639995,-1314.929,0.00014312,2]
[399550127,1766478640005,-162.70210317,0.00014312,2]
[399550128,1766478640015,-500.0,0.00014312,2]
[399550129,1766478640026,-151.0,0.00014312,2]
[399550130,1766478640036,-500.0,0.00014312,2]
[399550131,1766478640046,-151.0,0.00014312,2]
[399550132,1766478640057,-500.0,0.00014312,2]
[399550133,1766478640068,-151.0,0.00014312,2]
[399550134,1766478640078,-500.0,0.00014312,2]
[399550135,1766478640088,-151.0,0.00014312,2]
[399550136,1766478640098,-500.0,0.00014312,2]
[399550137,1766478640109,-151.0,0.00014312,2]
[399550138,1766478640119,-500.0,0.00014312,2]
[399550139,1766478640134,-151.0,0.00014312,2]
[399550140,1766478640144,-500.0,0.00014312,2]
[399550141,1766478640154,-151.0,0.00014312,2]
[399550142,1766478640166,-500.0,0.00014312,2]
[399550143,1766478640177,-500.0,0.00014312,2]
[399550144,1766478640187,-151.0,0.00014312,2]
[399550145,1766478640197,-529.63919594,0.00014312,2]
[399550146,1766478640213,-500.0,0.00014312,2]
[399550147,1766478640223,-151.0,0.00014312,2]
[399550148,1766478640234,-500.0,0.00014312,2]
[399550149,1766478640245,-500.0,0.00014312,2]
[399550150,1766478640256,-151.0,0.00014312,2]
[399550151,1766478640267,-500.0,0.00014312,2]
[399550152,1766478640277,-151.0,0.00014312,2]
[399550153,1766478640287,-500.0,0.00014312,2]
[399550154,1766478640298,-500.0,0.00014312,2]
[399550155,1766478640309,-500.0,0.00014312,2]
[399550156,1766478640319,-500.0,0.00014312,2]
[399550157,1766478640330,-500.0,0.00014312,2]
[399550158,1766478640340,-500.0,0.00014312,2]
[399550159,1766478640351,-200.0,0.00014312,2]
[399550160,1766478640361,-200.0,0.00014312,2]
[399550161,1766478640372,-500.0,0.00014312,2]
[399550162,1766478640382,-335.26105309,0.00014312,2]
[399550163,1766478640393,-200.0,0.00014312,2]
[399550164,1766478640403,-493.65,0.00014313,2]
[399550165,1766478640414,-1545.7934435,0.00014319,2]
[399550166,1766478640425,-163.2364764,0.00014319,2]
[399550167,1766478640435,-200.0,0.00014321,2]
[399550168,1766478640446,-2198.2114354,0.0001443,2]
[399550169,1766478640456,-743.72859403,0.0001443,2]
[399550170,1766478640466,-1000.0,0.00014452,2]
[399550171,1766478640477,-265.838,0.00014452,2]
[399550172,1766478640487,-1000.0,0.00014452,2]
[399550173,1766478640497,-1000.0,0.00014452,2]
[399550174,1766478640507,-1000.0,0.00014452,2]
[399550175,1766478640517,-166.66,0.00014509,2]
[399550176,1766478640527,-500.0,0.0001452,2]
[399550177,1766478640537,-500.0,0.0001452,2]
[399550178,1766478640547,-516.51847298,0.0001452,2]
[399550179,1766478640557,-493.65,0.00014587,2]
[399550180,1766478640567,-999.0,0.0001465,3]
[399550181,1766478640580,-771.0,0.0001466,2]
[399550182,1766478640591,-1000.0,0.0001467,2]
[399550183,1766478640602,-6068.09,0.00014695,2]
[399550184,1766478640612,-500.0,0.00014721,2]
[399550185,1766478640622,-2198.2114354,0.00014739,2]
[399550186,1766478640632,-743.72859403,0.00014739,2]
[399550187,1766478640642,-200.0,0.00014763,2]
[399550188,1766478640652,-15672.82,0.00014805,2]
[399550189,1766478640663,-166.66,0.00014808,2]
[399550190,1766478640674,-200.0,0.0001486,2]
[399550191,1766478640683,-201.61297217,0.0001486,2]
[399550192,1766478640693,-500.0,0.0001486,2]
[399550193,1766478640703,-493.65,0.00014861,2]
[399550194,1766478640714,-150.0,0.00014864,2]
[399550195,1766478640724,-150.0,0.00014905,2]
[399550196,1766478640734,-3240.0,0.00014912,2]
[399550197,1766478640744,-190.0,0.00015,2]
[399550198,1766478640757,-2198.2114354,0.00015047,2]
[399550199,1766478640767,-743.72859403,0.00015047,2]
[399550200,1766478640777,-2500.0,0.00015068,2]
[399550201,1766478640787,-600.0,0.00015068,2]
[399550202,1766478640797,-300.0,0.00015068,2]
[399550203,1766478640807,-166.66,0.00015107,2]
[399550204,1766478640817,-493.65,0.00015135,2]
[399550205,1766478640827,-181.0,0.00015334,2]
[399550206,1766478640837,-2198.2114354,0.00015356,2]
[399550208,1766478640847,-1500.0,0.00015378,2]
[399550210,1766478640857,-166.66,0.00015406,2]
[399550212,1766478640867,-493.68,0.00015408,2]
[399550214,1766478640876,-200.0,0.00015408,2]
[399550216,1766478640886,-158.54,0.00015478,2]
[399550217,1766478640896,-1612.0,0.00015532,2]
[399550219,1766478640907,-936.04,0.00015556,2]
[399550221,1766478640917,-403.0,0.00015566,2]
[399550223,1766478640928,-420.0,0.00015566,2]
[399550225,1766478640937,-161.3,0.00015598,2]
[399550227,1766478640947,-934.55,0.00015631,2]
[399550229,1766478640957,-2198.2114354,0.00015665,2]
[399550230,1766478640967,-502.0,0.00015699,2]
[399550231,1766478640977,-166.66,0.00015705,2]
[399550232,1766478640987,-4305.33,0.00015737,2]
[399550233,1766478640997,-1545.7934435,0.00015896,2]
[399550234,1766478641008,-200.0,0.00015956,2]
[399550235,1766478641018,-2198.2114354,0.00015974,2]
[399550236,1766478641028,-54510.28364473,0.00016,4]
[399550237,1766478641038,-250.0,0.00016123,2]
[399550238,1766478641048,-5000.00037548,0.000162,5]
[399550239,1766478641058,-2198.2114354,0.00016282,2]
[399550240,1766478641068,-581.2076149,0.00016438,2]
[399550241,1766478641078,-600.0,0.00016438,2]
[399550242,1766478641090,-7370.87,0.00016438,2]
[399550243,1766478641100,-1000.0,0.00016504,2]
[399550244,1766478641113,-207.88723197,0.00016504,2]
[399550245,1766478641134,-2198.2114354,0.00016591,2]
[399550246,1766478641144,-500.0,0.00016699,2]
[399550247,1766478641154,-150.0,0.00016699,2]
[399550248,1766478641164,-150.0,0.00016699,2]
[399550249,1766478641175,-500.0,0.00016699,2]
[399550250,1766478641185,-500.0,0.00016699,2]
[399550251,1766478641196,-150.0,0.00016699,2]
[399550252,1766478641207,-500.0,0.00016699,2]
[399550253,1766478641216,-500.0,0.00016699,2]
[399550254,1766478641227,-500.0,0.00016699,2]
[399550255,1766478641239,-150.0,0.00016699,2]
[399550256,1766478641250,-500.0,0.00016699,2]
[399550257,1766478641260,-150.0,0.00016699,2]
[399550258,1766478641271,-500.0,0.00016699,2]
[399550259,1766478641281,-150.0,0.00016699,2]
[399550260,1766478641292,-157.11554878,0.00016699,2]
[399550261,1766478641302,-500.0,0.00016699,2]
[399550262,1766478641313,-500.0,0.00016699,2]
[399550263,1766478641323,-500.0,0.00016699,2]
[399550264,1766478641341,-150.0,0.00016699,2]
[399550265,1766478641356,-150.0,0.00016699,2]
[399550266,1766478641367,-500.0,0.00016699,2]
[399550267,1766478641376,-500.0,0.00016699,2]
[399550268,1766478641387,-150.0,0.00016699,2]
[399550269,1766478641397,-500.0,0.00016699,2]
[399550270,1766478641407,-160.85,0.00016712,2]
[399550271,1766478641417,-500.0,0.00016726,2]
[399550272,1766478641427,-257.86837201,0.00016726,2]
[399550273,1766478641437,-267.77127482,0.00016726,2]
[399550274,1766478641447,-500.0,0.00016726,2]
[399550275,1766478641457,-500.0,0.00016726,2]
[399550276,1766478641467,-220.89163022,0.00016726,2]
[399550277,1766478641477,-500.0,0.00016726,2]
[399550278,1766478641487,-500.0,0.00016726,2]
[399550279,1766478641496,-500.0,0.00016726,2]
[399550280,1766478641507,-150.0,0.00016726,2]
[399550281,1766478641516,-500.0,0.00016726,2]
[399550282,1766478641537,-150.0,0.00016726,2]
[399550283,1766478641547,-500.0,0.00016726,2]
[399550284,1766478641558,-500.0,0.00016726,2]
[399550285,1766478641569,-500.0,0.00016726,2]
[399550286,1766478641580,-500.0,0.00016726,2]
[399550287,1766478641591,-500.0,0.00016726,2]
[399550288,1766478641602,-500.0,0.00016726,2]
[399550289,1766478641612,-187.01383122,0.00016726,2]
[399550290,1766478641622,-500.0,0.00016726,2]
[399550291,1766478641633,-698.33268994,0.00016744,2]
[399550292,1766478641644,-500.0,0.00016754,2]
[399550293,1766478641654,-500.0,0.00016754,2]
[399550294,1766478641665,-500.0,0.00016754,2]
[399550295,1766478641677,-500.0,0.00016754,2]
[399550296,1766478641687,-500.0,0.00016754,2]
[399550297,1766478641697,-500.0,0.00016754,2]
[399550298,1766478641708,-150.0,0.00016754,2]
[399550299,1766478641719,-500.0,0.00016754,2]
[399550300,1766478641730,-255.7741324,0.00016754,2]
[399550301,1766478641740,-500.0,0.00016754,2]
[399550302,1766478641750,-500.0,0.00016754,2]
[399550303,1766478641761,-500.0,0.00016754,2]
[399550304,1766478641771,-500.0,0.00016754,2]
[399550305,1766478641782,-500.0,0.00016754,2]
[399550306,1766478641792,-620.76763019,0.00016754,2]
[399550307,1766478641802,-500.0,0.00016754,2]
[399550308,1766478641814,-500.0,0.00016781,2]
[399550309,1766478641823,-464.54142088,0.00016781,2]
[399550310,1766478641834,-500.0,0.00016781,2]
[399550311,1766478641844,-500.0,0.00016781,2]
[399550312,1766478641855,-452.2515866,0.00016781,2]
[399550313,1766478641865,-500.0,0.00016781,2]
[399550314,1766478641875,-150.0,0.00016781,2]
[399550315,1766478641886,-500.0,0.00016781,2]
[399550316,1766478641896,-500.0,0.00016781,2]
[399550317,1766478641906,-500.0,0.00016781,2]
[399550318,1766478641918,-500.0,0.00016781,2]
[399550319,1766478641928,-500.0,0.00016781,2]
[399550320,1766478641939,-500.0,0.00016781,2]
[399550321,1766478641949,-500.0,0.00016781,2]
[399550322,1766478641960,-500.0,0.00016809,2]
[399550323,1766478641970,-500.0,0.00016809,2]
[399550324,1766478641980,-500.0,0.00016809,2]
[399550325,1766478641991,-500.0,0.00016809,2]
[399550326,1766478642001,-240.64119308,0.00016809,2]
[399550327,1766478642011,-500.0,0.00016809,2]
[399550328,1766478642022,-500.0,0.00016809,2]
[399550329,1766478642033,-500.0,0.00016809,2]
[399550330,1766478642043,-500.0,0.00016809,2]
[399550331,1766478642053,-500.0,0.00016809,2]
[399550332,1766478642063,-500.0,0.00016809,2]